bitfinex/quotes_BTCUSD_20250723
["timestamp","ask_amount","ask_price","bid_price","bid_amount"]
[1753295003316,1e-08,118310.0,118300.0,1.09196966]
[1753295003537,0.00845173,118310.0,118300.0,1.09196966]
[1753295003787,0.20776531,118310.0,118300.0,0.5567817]
[1753295004011,0.22336531,118310.0,118300.0,0.69823442]
[1753295004235,0.06277019,118310.0,118300.0,0.69823442]
[1753295004479,0.01336188,118310.0,118300.0,0.71513965]
[1753295004746,0.00491001,118310.0,118300.0,0.71113965]
[1753295004976,0.01336173,118310.0,118300.0,0.71413965]
[1753295005201,0.00491001,118310.0,118300.0,0.58313965]
[1753295005408,0.03026603,118310.0,118300.0,0.71313965]
[1753295005623,0.20776581,118310.0,118300.0,0.3050617]
[1753295005841,0.26106708,118310.0,118300.0,0.67732898]
[1753295006059,0.26106708,118310.0,118300.0,0.68578192]
[1753295006273,0.26106708,118310.0,118300.0,0.69435493]
[1753295006514,0.22961402,118310.0,118300.0,0.7028078]
[1753295007487,0.22961402,118310.0,118300.0,0.7048078]
[1753295007648,0.22116201,118310.0,118300.0,0.3688142]
[1753295007855,0.45563931,118310.0,118300.0,0.3688142]
[1753295008055,0.54011661,118310.0,118300.0,0.3688142]
[1753295008466,0.45563931,118310.0,118300.0,0.3688142]
[1753295008908,0.45563931,118310.0,118300.0,0.5018142]
[1753295010183,0.45563931,118310.0,118300.0,0.3688142]
[1753295010829,0.45563931,118310.0,118300.0,0.5017742]
[1753295011777,0.46409132,118310.0,118300.0,0.69619421]
[1753295012016,0.45563931,118310.0,118300.0,0.6708359]
[1753295012257,0.44718709,118310.0,118300.0,0.67928898]
[1753295012653,0.44718709,118310.0,118300.0,0.68774199]
[1753295013523,0.44718709,118310.0,118300.0,0.7046475]
[1753295013728,0.45563924,118310.0,118300.0,0.7046475]
[1753295013941,0.30349591,118310.0,118300.0,0.71310008]
[1753295014283,0.48099569,118310.0,118300.0,0.71310008]
[1753295014711,0.01886367,118310.0,118300.0,0.73059008]
[1753295014867,0.01041173,118310.0,118300.0,0.73059008]
[1753295015077,1e-08,118310.0,118300.0,0.74942008]
[1753295015675,1e-08,118310.0,118300.0,1.11323428]
[1753295016155,1e-08,118310.0,118300.0,0.74942008]
[1753295016605,1e-08,118310.0,118300.0,1.11323428]
[1753295017194,1e-08,118310.0,118300.0,1.0961695]
[1753295018909,1e-08,118310.0,118300.0,0.9632095]
[1753295019131,1e-08,118310.0,118300.0,1.0963295]
[1753295019341,1e-08,118310.0,118300.0,0.9632095]
[1753295019701,1e-08,118310.0,118300.0,0.74096769]
[1753295020132,1e-08,118310.0,118300.0,0.60792769]
[1753295020376,1e-08,118310.0,118300.0,0.38568588]
[1753295020590,1e-08,118310.0,118300.0,0.74092769]
[1753295025379,1e-08,118310.0,118300.0,1.0962095]
[1753295025803,1e-08,118310.0,118300.0,0.74092769]
[1753295026195,1e-08,118310.0,118300.0,0.38564588]
[1753295026415,1e-08,118310.0,118300.0,0.74092769]
[1753295029728,1e-08,118310.0,118300.0,1.0962095]
[1753295030394,1e-08,118310.0,118300.0,1.1806868]
[1753295032912,1e-08,118310.0,118300.0,1.5206868]
[1753295033137,1e-08,118310.0,118300.0,1.5176868]
[1753295033571,1e-08,118310.0,118300.0,1.5236868]
[1753295033795,1e-08,118310.0,118300.0,1.5216868]
[1753295034272,1e-08,118310.0,118300.0,1.59213582]
[1753295034492,1e-08,118310.0,118300.0,1.61752782]
[1753295038020,1e-08,118310.0,118300.0,1.66752782]
[1753295038675,1e-08,118310.0,118300.0,1.66452782]
[1753295038850,1e-08,118310.0,118300.0,1.65852782]
[1753295039266,1e-08,118310.0,118300.0,1.6752327]
[1753295039918,0.00100001,118310.0,118300.0,1.6752327]
[1753295040126,0.00100001,118310.0,118300.0,0.7149642]
[1753295040455,0.00100001,118310.0,118300.0,1.6749927]
[1753295040456,1e-08,118310.0,118300.0,1.6749927]
[1753295041105,1e-08,118310.0,118300.0,0.9477242]
[1753295042352,1e-08,118310.0,118300.0,1.30292551]
[1753295042762,1e-08,118310.0,118300.0,1.25292551]
[1753295042973,1e-08,118310.0,118300.0,1.30292551]
[1753295044498,1e-08,118310.0,118300.0,1.17016551]
[1753295044704,1e-08,118310.0,118300.0,1.05271649]
[1753295044912,1e-08,118310.0,118300.0,1.18631649]
[1753295045323,1e-08,118310.0,118300.0,0.83111518]
[1753295045750,1e-08,118310.0,118300.0,0.88111518]
[1753295045946,1e-08,118310.0,118300.0,1.23631649]
[1753295048805,1e-08,118310.0,118300.0,1.18631649]
[1753295049006,1e-08,118310.0,118300.0,1.23631649]
[1753295050674,1e-08,118310.0,118300.0,1.30376551]
[1753295055129,1e-08,118310.0,118300.0,0.9485642]
[1753295055531,1e-08,118310.0,118300.0,1.30376551]
[1753295055735,1e-08,118310.0,118300.0,1.60236551]
[1753295058249,1e-08,118310.0,118300.0,1.80532551]
[1753295060095,1e-08,118310.0,118300.0,2.00065542]
[1753295063276,1e-08,118310.0,118300.0,1.64545411]
[1753295066061,1e-08,118330.0,118320.0,0.26183625]
[1753295066265,1e-08,118330.0,118320.0,0.51258355]
[1753295066707,1e-08,118330.0,118320.0,1.60669186]
[1753295067133,0.06802754,118350.0,118340.0,0.92163991]
[1753295067349,0.06851934,118350.0,118340.0,1.51258721]
[1753295067568,0.06851934,118350.0,118340.0,1.51576721]
[1753295068052,1e-08,118350.0,118340.0,1.58321623]
[1753295069585,0.00100001,118350.0,118340.0,1.58321623]
[1753295070670,0.00100001,118350.0,118340.0,1.59206318]
[1753295071933,0.00100001,118350.0,118340.0,1.59506318]
[1753295072133,0.00100001,118350.0,118340.0,1.59206318]
[1753295072358,0.00310001,118350.0,118340.0,1.37195416]
[1753295072560,0.00608001,118350.0,118340.0,1.48800416]
[1753295072989,0.00608001,118350.0,118340.0,1.35496416]
[1753295073202,0.00608001,118350.0,118340.0,1.48800416]
[1753295073420,0.02228001,118350.0,118340.0,1.48800416]
[1753295074066,0.03868001,118350.0,118340.0,1.48800416]
[1753295075595,0.02248001,118350.0,118340.0,1.48800416]
[1753295075841,0.00608001,118350.0,118340.0,1.48800416]
[1753295077214,0.03708001,118350.0,118340.0,1.35496416]
[1753295077429,0.03708001,118350.0,118340.0,1.48780416]
[1753295078636,0.00608001,118350.0,118340.0,1.48780416]
[1753295079045,0.00100001,118350.0,118340.0,1.52228416]
[1753295079208,0.00100001,118350.0,118340.0,1.52548416]
[1753295080563,0.00100001,118350.0,118340.0,1.50588416]
[1753295080759,0.00307001,118350.0,118340.0,1.48978416]
[1753295081185,0.0004,118360.0,118350.0,0.53433795]
[1753295081406,0.00054748,118360.0,118350.0,1.51162079]
[1753295081607,0.00054748,118360.0,118350.0,1.51482079]
[1753295081797,0.00054748,118360.0,118350.0,1.5406232]
[1753295082663,0.00054748,118360.0,118350.0,1.5436232]
[1753295083367,0.00054748,118360.0,118350.0,1.5466232]
[1753295094043,0.0004,118370.0,118360.0,1.27730707]
[1753295094258,0.0004,118370.0,118360.0,1.49588437]
[1753295094477,0.0004,118370.0,118360.0,1.49908437]
[1753295095456,0.0004,118370.0,118360.0,1.51508437]
[1753295095655,0.00341,118380.0,118360.0,1.51508437]
[1753295095656,0.0004,118380.0,118370.0,0.53430512]
[1753295095866,0.0004,118380.0,118370.0,1.51572796]
[1753295096644,0.0004,118390.0,118380.0,1.26157424]
[1753295096984,0.0004,118390.0,118380.0,1.51147154]
[1753295097403,1e-08,118390.0,118380.0,1.53212056]
[1753295097635,1e-08,118390.0,118380.0,1.58212056]
[1753295098076,1e-08,118390.0,118380.0,1.58312056]
[1753295099135,1e-08,118390.0,118380.0,1.58512056]
[1753295099336,1e-08,118390.0,118380.0,1.58412056]
[1753295099548,1e-08,118390.0,118380.0,1.58312056]
[1753295099755,1e-08,118390.0,118380.0,1.58612056]
[1753295102823,1e-08,118390.0,118380.0,1.45308056]
[1753295103033,1e-08,118390.0,118380.0,1.88108056]
[1753295103485,1e-08,118390.0,118380.0,1.79972056]
[1753295103702,1e-08,118390.0,118380.0,1.79652056]
[1753295103910,1e-08,118390.0,118380.0,1.81172056]
[1753295104344,1e-08,118400.0,118390.0,0.21027228]
[1753295104561,0.00014743,118400.0,118390.0,1.17316512]
[1753295104780,0.00014743,118400.0,118390.0,1.17609512]
[1753295105203,1e-08,118400.0,118390.0,1.17609512]
[1753295106082,1e-08,118400.0,118390.0,1.17809512]
[1753295106292,1e-08,118400.0,118390.0,0.45380958]
[1753295106502,1e-08,118400.0,118390.0,1.18109512]
[1753295107162,0.0035,118420.0,118410.0,0.53423948]
[1753295107400,0.00252,118420.0,118410.0,1.48083232]
[1753295107615,0.0004,118420.0,118410.0,1.50006232]
[1753295109802,0.0004,118420.0,118410.0,1.13348955]
[1753295109973,0.00252,118420.0,118410.0,1.11718955]
[1753295110207,0.00562,118420.0,118410.0,1.11718955]
[1753295110643,0.00562,118420.0,118410.0,1.11619955]
[1753295110874,0.03762,118420.0,118410.0,1.11619955]
[1753295111516,0.04982908,118420.0,118410.0,0.69172225]
[1753295111730,0.04606387,118420.0,118410.0,0.69172225]
[1753295112156,0.05450789,118420.0,118410.0,0.32807948]
[1753295112366,0.05450789,118420.0,118410.0,0.69172225]
[1753295112588,0.03762,118420.0,118410.0,0.69172225]
[1753295114334,0.03762,118420.0,118410.0,0.55888225]
[1753295114536,0.03762,118420.0,118410.0,0.69168225]
[1753295115203,0.03762,118420.0,118410.0,0.69368225]
[1753295119314,0.04606402,118420.0,118410.0,0.69368225]
[1753295119525,0.05450811,118420.0,118410.0,0.69368225]
[1753295120159,0.03762,118420.0,118410.0,0.69368225]
[1753295120410,0.05450818,118420.0,118410.0,0.69368225]
[1753295120634,0.24189122,118420.0,118410.0,0.68503767]
[1753295120850,0.2233992,118420.0,118410.0,0.003]
[1753295121477,0.2233992,118420.0,118410.0,0.36664277]
[1753295121704,0.3078765,118420.0,118410.0,0.003]
[1753295121910,0.3078765,118420.0,118410.0,0.001]
[1753295122057,0.3923538,118420.0,118410.0,0.001]
[1753295122268,0.3923538,118420.0,118410.0,0.002]
[1753295122465,0.3923538,118420.0,118410.0,0.17934981]
[1753295122466,0.3078765,118420.0,118410.0,0.17934981]
[1753295122718,0.3078765,118420.0,118410.0,0.54299258]
[1753295122913,0.2994322,118420.0,118410.0,0.002]
[1753295123133,0.2994322,118420.0,118410.0,0.36564277]
[1753295123737,0.2994322,118420.0,118410.0,0.36464277]
[1753295123976,0.3839095,118420.0,118410.0,0.36464277]
[1753295124908,0.3839095,118420.0,118410.0,0.001]
[1753295125093,0.3839095,118420.0,118410.0,0.36464277]
[1753295125331,0.3839095,118420.0,118410.0,0.001]
[1753295126499,0.3839095,118420.0,118410.0,0.36464277]
[1753295126931,0.3839095,118420.0,118410.0,0.001]
[1753295127919,0.1305416,118420.0,118410.0,0.55043766]
[1753295128135,0.03762,118420.0,118410.0,0.56732733]
[1753295128349,0.0545081,118420.0,118410.0,0.33620456]
[1753295128558,0.24189114,118420.0,118410.0,0.33620463]
[1753295128768,0.06295247,118420.0,118410.0,0.70829213]
[1753295128977,0.04766778,118420.0,118410.0,0.70729213]
[1753295129105,0.05611187,118420.0,118410.0,0.70729213]
[1753295129324,0.0645561,118420.0,118410.0,0.70729213]
[1753295129520,0.04766778,118420.0,118410.0,0.70729213]
[1753295129930,0.03922384,118420.0,118410.0,0.70729213]
[1753295130150,0.03762,118420.0,118410.0,0.70729213]
[1753295130783,0.04606394,118420.0,118410.0,0.70729213]
[1753295131191,0.09596392,118420.0,118410.0,0.20268463]
[1753295131406,0.23125132,118420.0,118400.0,0.31824959]
[1753295131603,0.23125132,118420.0,118400.0,0.54945294]
[1753295131604,0.23598428,118410.0,118400.0,0.54945294]
[1753295131807,0.07764486,118410.0,118400.0,0.55789852]
[1753295132022,0.06075454,118410.0,118400.0,0.55789845]
[1753295132169,0.06075447,118410.0,118400.0,0.56634389]
[1753295132532,0.36241948,118410.0,118400.0,0.54945294]
[1753295132740,0.04719131,118400.0,118390.0,0.58293504]
[1753295132941,0.23982516,118400.0,118390.0,0.21084597]
[1753295133102,0.22977595,118400.0,118390.0,0.57448881]
[1753295133281,0.22977595,118400.0,118390.0,0.17737976]
[1753295133493,0.04799274,118390.0,118380.0,0.55793133]
[1753295133698,0.19430918,118390.0,118380.0,0.55807875]
[1753295133882,0.38545553,118390.0,118380.0,0.54118494]
[1753295134094,0.38545553,118390.0,118380.0,0.54963209]
[1753295134294,0.3770093,118390.0,118380.0,0.54963209]
[1753295134500,0.05846317,118390.0,118380.0,0.54963209]
[1753295134721,0.00211,118390.0,118380.0,0.70133604]
[1753295135031,0.01055608,118390.0,118380.0,0.33769327]
[1753295135255,0.01359601,118390.0,118380.0,0.33560327]
[1753295135481,0.02204216,118390.0,118380.0,0.56752604]
[1753295135688,0.05393497,118390.0,118380.0,0.70048604]
[1753295135835,0.03704216,118390.0,118380.0,0.70048604]
[1753295136031,0.02859608,118390.0,118380.0,0.70048604]
[1753295136608,0.03864615,118390.0,118380.0,0.70048604]
[1753295136791,0.03019992,118390.0,118380.0,0.72564674]
[1753295137007,0.03864615,118390.0,118380.0,0.72564674]
[1753295137195,0.03019992,118390.0,118380.0,0.72564674]
[1753295137552,0.02175384,118390.0,118380.0,0.72564674]
[1753295137758,0.02175384,118390.0,118380.0,0.59268674]
[1753295137981,0.02175384,118390.0,118380.0,0.72556674]
[1753295138212,0.00515,118390.0,118380.0,0.59268674]
[1753295138422,0.00211,118390.0,118380.0,0.72765674]
[1753295138581,0.00515,118390.0,118380.0,0.72556674]
[1753295139230,0.01359601,118390.0,118380.0,0.72556674]
[1753295139465,0.00515,118390.0,118380.0,0.72556674]
[1753295140514,0.01359615,118390.0,118380.0,0.72556674]
[1753295140724,0.00515,118390.0,118380.0,0.72556674]
[1753295140935,0.02204216,118390.0,118380.0,0.72556674]
[1753295141154,0.03645,118390.0,118380.0,0.58423959]
[1753295141373,0.06178903,118390.0,118380.0,0.58423959]
[1753295141589,0.00211,118390.0,118380.0,0.58423959]
[1753295141810,0.00211,118390.0,118380.0,0.60162959]
[1753295142235,0.00211,118390.0,118380.0,0.58632959]
[1753295142799,0.00211,118390.0,118380.0,0.60162959]
[1753295143049,0.02808914,118400.0,118390.0,0.19427228]
[1753295143269,0.00515,118400.0,118390.0,0.55791505]
[1753295143534,0.00211,118400.0,118390.0,1.07286782]
[1753295143818,0.14420466,118410.0,118400.0,0.19425588]
[1753295144069,0.1479185,118410.0,118400.0,0.92154142]
[1753295144312,0.03864337,118410.0,118400.0,0.19425588]
[1753295144551,0.0301985,118410.0,118400.0,0.55789865]
[1753295144799,0.04708817,118410.0,118400.0,0.55789865]
[1753295145090,0.23288307,118410.0,118400.0,0.55789879]
[1753295145366,0.22968984,118410.0,118400.0,0.54100755]
[1753295145563,0.02533647,118400.0,118390.0,0.32699142]
[1753295145749,0.01900081,118400.0,118390.0,0.69063419]
[1753295146413,0.01055537,118400.0,118390.0,0.69063419]
[1753295146615,0.01900074,118400.0,118390.0,0.69063419]
[1753295146821,0.0105553,118400.0,118390.0,0.69063419]
[1753295147170,0.0105553,118400.0,118390.0,0.69163419]
[1753295147377,0.00211,118400.0,118390.0,0.69372419]
[1753295147580,0.00211,118400.0,118390.0,0.70912419]
[1753295147738,0.00211,118400.0,118390.0,0.71012419]
[1753295148999,0.00211,118400.0,118390.0,0.34648142]
[1753295149267,0.00211,118400.0,118390.0,0.71012419]
[1753295150019,0.05022932,118410.0,118400.0,0.19425588]
[1753295150229,0.00515,118410.0,118400.0,1.05623142]
[1753295150427,0.00515,118410.0,118400.0,0.92363142]
[1753295150633,0.00515,118410.0,118400.0,1.05623142]
[1753295151207,0.00515,118410.0,118400.0,0.55998865]
[1753295151440,0.00515,118410.0,118400.0,0.69254865]
[1753295151861,0.00211,118410.0,118400.0,0.70854865]
[1753295152039,0.10965973,118420.0,118410.0,0.19423948]
[1753295152040,0.00504384,118420.0,118410.0,0.19423948]
[1753295152290,0.00251,118420.0,118410.0,0.69249225]
[1753295152497,0.00251,118420.0,118410.0,0.70849225]
[1753295153115,0.01095394,118420.0,118410.0,0.70849225]
[1753295153299,0.00251,118420.0,118410.0,0.70849225]
[1753295153545,0.0004,118420.0,118410.0,0.70849225]
[1753295153769,0.0004,118420.0,118410.0,0.72803225]
[1753295154186,0.0004,118420.0,118410.0,0.59551225]
[1753295154392,0.0004,118420.0,118410.0,0.72799225]
[1753295154801,0.00884387,118420.0,118410.0,0.59551225]
[1753295154989,0.00884387,118420.0,118410.0,0.72795225]
[1753295155198,0.0004,118420.0,118410.0,0.72795225]
[1753295155341,0.0004,118420.0,118410.0,0.72895225]
[1753295155543,0.0004,118420.0,118410.0,0.72581225]
[1753295157461,0.0004,118420.0,118410.0,0.72681225]
[1753295157678,0.00884387,118420.0,118410.0,0.72995225]
[1753295158104,0.0004,118420.0,118410.0,0.72681225]
[1753295160245,0.01728796,118420.0,118410.0,0.72665225]
[1753295160458,0.01095387,118420.0,118410.0,0.71025225]
[1753295160663,0.00251,118420.0,118410.0,0.34660948]
[1753295160861,0.00251,118420.0,118410.0,0.71025225]
[1753295162075,0.0004,118420.0,118410.0,0.72979225]
[1753295167913,0.0004,118420.0,118410.0,0.36614948]
[1753295168118,0.00884394,118420.0,118410.0,0.71339225]
[1753295168358,0.1915287,118420.0,118410.0,0.18143959]
[1753295168556,0.06120137,118420.0,118410.0,0.69180225]
[1753295168772,0.00575,118420.0,118410.0,0.69180225]
[1753295168969,0.01419387,118420.0,118410.0,0.69180225]
[1753295169176,0.00575,118420.0,118410.0,0.69180225]
[1753295169392,0.00575,118420.0,118410.0,0.69375225]
[1753295169604,0.00254,118420.0,118410.0,0.70925225]
[1753295169806,0.0004,118420.0,118410.0,0.71225225]
[1753295170014,0.01419387,118420.0,118410.0,0.69375225]
[1753295170436,0.02263789,118420.0,118410.0,0.69375225]
[1753295170726,0.03952642,118420.0,118410.0,0.69180225]
[1753295170952,0.03108205,118420.0,118410.0,0.69180225]
[1753295171139,0.02263789,118420.0,118410.0,0.69180225]
[1753295171343,0.03108198,118420.0,118410.0,0.69180225]
[1753295171975,0.04797051,118420.0,118410.0,0.69180225]
[1753295172414,0.03952614,118420.0,118410.0,0.69180225]
[1753295172997,0.03108198,118420.0,118410.0,0.69180225]
[1753295173200,0.02263789,118420.0,118410.0,0.69180225]
[1753295174326,0.03108205,118420.0,118410.0,0.69180225]
[1753295174538,0.03952628,118420.0,118410.0,0.69180225]
[1753295174748,0.04797065,118420.0,118410.0,0.69180225]
[1753295174944,0.04797058,118420.0,118410.0,0.69180225]
[1753295175141,0.03108205,118420.0,118410.0,0.69180225]
[1753295175533,0.03952642,118420.0,118410.0,0.69180225]
[1753295176412,0.03952635,118420.0,118410.0,0.69180225]
[1753295176607,0.04797072,118420.0,118410.0,0.69180225]
[1753295177158,0.03952635,118420.0,118410.0,0.69180225]
[1753295177400,0.02263789,118420.0,118410.0,0.69180225]
[1753295177592,0.03108205,118420.0,118410.0,0.69180225]
[1753295177831,0.03952642,118420.0,118410.0,0.69180225]
[1753295178257,0.03952635,118420.0,118410.0,0.69180225]
[1753295178734,0.04797072,118420.0,118410.0,0.69180225]
[1753295179143,0.02263789,118420.0,118410.0,0.69180225]
[1753295179344,0.03108205,118420.0,118410.0,0.69180225]
[1753295179585,0.02263789,118420.0,118410.0,0.69375225]
[1753295179800,0.03108212,118420.0,118410.0,0.69375225]
[1753295180223,0.03952642,118420.0,118410.0,0.69375225]
[1753295180446,0.03108212,118420.0,118410.0,0.69375225]
[1753295180682,0.02263789,118420.0,118410.0,0.69375225]
[1753295180914,0.03108205,118420.0,118410.0,0.69375225]
[1753295181129,0.03952642,118420.0,118410.0,0.69375225]
[1753295181523,0.04113026,118420.0,118410.0,0.69375225]
[1753295181712,0.03952628,118420.0,118410.0,0.69375225]
[1753295181847,0.04957449,118420.0,118410.0,0.69375225]
[1753295182474,0.04957442,118420.0,118410.0,0.69375225]
[1753295182875,0.04957492,118420.0,118410.0,0.69375225]
[1753295183116,0.03268625,118420.0,118410.0,0.69375225]
[1753295183438,0.04113062,118420.0,118410.0,0.69375225]
[1753295184101,0.03268625,118420.0,118410.0,0.69375225]
[1753295184305,0.02424202,118420.0,118410.0,0.69375225]
[1753295184507,0.03268625,118420.0,118410.0,0.69375225]
[1753295185113,0.04113062,118420.0,118410.0,0.69375225]
[1753295185315,0.04113062,118420.0,118410.0,0.55143752]
[1753295185522,0.04113062,118420.0,118410.0,0.70020712]
[1753295186159,0.24198889,118420.0,118410.0,0.67487258]
[1753295186367,0.54955748,118420.0,118410.0,0.002]
[1753295186572,0.69955748,118420.0,118410.0,0.002]
[1753295187385,0.69955748,118420.0,118410.0,0.001]
[1753295187538,0.20181029,118400.0,118390.0,0.36364277]
[1753295187741,0.194272,118390.0,118380.0,0.54288334]
[1753295187947,0.20806908,118390.0,118380.0,0.66631648]
[1753295188127,0.20806908,118390.0,118380.0,1.03840619]
[1753295188327,0.20806908,118390.0,118380.0,0.69840619]
[1753295188937,0.03068918,118390.0,118380.0,0.70685306]
[1753295189142,0.03913576,118390.0,118380.0,0.70685306]
[1753295189365,0.20806894,118390.0,118380.0,0.69840619]
[1753295189988,0.20806894,118390.0,118380.0,0.70040619]
[1753295190239,0.23419695,118390.0,118380.0,0.69195917]
[1753295190469,0.05681719,118390.0,118380.0,0.70040604]
[1753295190759,0.05842103,118390.0,118380.0,0.72554421]
[1753295191311,0.03229223,118390.0,118380.0,0.72749421]
[1753295191523,0.04073867,118390.0,118380.0,0.36385144]
[1753295191723,0.20122627,118390.0,118380.0,0.54318501]
[1753295191928,0.35435613,118390.0,118380.0,0.00214742]
[1753295192132,0.51292369,118390.0,118380.0,0.00214742]
[1753295192969,0.53037271,118390.0,118380.0,0.00214742]
[1753295193138,1.04401548,118390.0,118380.0,0.00014742]
[1753295193473,0.68037271,118390.0,118380.0,0.00014742]
[1753295194256,0.60628245,118390.0,118380.0,0.00014742]
[1753295194476,0.47440245,118390.0,118380.0,0.00114742]
[1753295194677,0.60628245,118390.0,118380.0,0.00114742]
[1753295195066,0.60628245,118390.0,118380.0,0.00014742]
[1753295195495,0.60728245,118390.0,118380.0,0.00014742]
[1753295196950,1.00728245,118390.0,118380.0,0.00014742]
[1753295198708,0.40853315,118390.0,118380.0,0.54963188]
[1753295198938,0.42493357,118390.0,118380.0,0.00014742]
[1753295199165,0.44033357,118390.0,118380.0,0.00014742]
[1753295204726,0.97142536,118390.0,118380.0,0.00014742]
[1753295204944,1.08317329,118390.0,118380.0,0.00014742]
[1753295205369,1.05590266,118390.0,118380.0,0.00014742]
[1753295205573,0.92402266,118390.0,118380.0,0.00014742]
[1753295205782,0.69237989,118390.0,118380.0,0.00014742]
[1753295207666,1.05602266,118390.0,118380.0,0.00014742]
[1753295208297,0.69237989,118390.0,118380.0,0.00014742]
[1753295208509,0.60790259,118390.0,118380.0,0.00014742]
[1753295212449,0.58808648,118390.0,118380.0,0.56593202]
[1753295212672,0.75701966,118390.0,118380.0,0.20442925]
[1753295212877,0.24808648,118390.0,118380.0,0.5849659]
[1753295213098,0.42546631,118390.0,118380.0,0.57651903]
[1753295213310,0.10450954,118390.0,118380.0,0.57651903]
[1753295213545,0.00944601,118390.0,118380.0,0.6037759]
[1753295213771,0.001,118390.0,118380.0,0.6037759]
[1753295215111,0.14889074,118400.0,118390.0,0.19427228]
[1753295215362,0.1404453,118400.0,118390.0,0.59386505]
[1753295215572,0.15737476,118410.0,118400.0,0.19425588]
[1753295215783,0.2454659,118410.0,118400.0,0.57583865]
[1753295216110,0.15938476,118410.0,118400.0,0.56739321]
[1753295216317,0.32989325,118410.0,118400.0,0.56739335]
[1753295216523,0.32828941,118410.0,118400.0,0.58428459]
[1753295216720,0.32828941,118410.0,118400.0,0.56739335]
[1753295217038,0.32828941,118410.0,118400.0,0.57583908]
[1753295217244,0.72828941,118410.0,118400.0,0.58428474]
[1753295217959,0.72928941,118410.0,118400.0,0.59273032]
[1753295219108,0.72928941,118410.0,118400.0,0.56739335]
[1753295219524,0.72928941,118410.0,118400.0,0.57583908]
[1753295220151,0.73251941,118410.0,118400.0,0.57583908]
[1753295220357,0.72407468,118410.0,118400.0,0.54314762]
[1753295220568,0.72407468,118410.0,118400.0,0.55159349]
[1753295220776,0.71562974,118410.0,118400.0,0.54314762]
[1753295220985,0.71562974,118410.0,118400.0,0.17950485]
[1753295221205,0.17736478,118400.0,118390.0,0.59212499]
[1753295221408,0.00844587,118400.0,118390.0,0.59426499]
[1753295221645,0.01849544,118400.0,118390.0,0.60271114]
[1753295222290,0.19586001,118400.0,118390.0,0.39999277]
[1753295222505,0.17737983,118390.0,118380.0,0.01544742]
[1753295222719,0.17938983,118390.0,118380.0,0.00014742]
[1753295222934,0.18261983,118390.0,118380.0,0.00014742]
[1753295223151,0.81709713,118390.0,118380.0,0.00014742]
[1753295223364,0.41709713,118390.0,118380.0,0.00014742]
[1753295223572,0.47334588,118390.0,118380.0,0.00014742]
[1753295223814,0.47655232,118390.0,118380.0,0.00224742]
[1753295224025,0.69925252,118390.0,118380.0,0.59484889]
[1753295224239,0.70769846,118390.0,118380.0,0.59484889]
[1753295224449,0.7161449,118390.0,118380.0,0.23120612]
[1753295224667,0.7161449,118390.0,118380.0,0.59484889]
[1753295224668,0.70769846,118390.0,118380.0,0.59484889]
[1753295224851,0.29925216,118390.0,118380.0,0.59584889]
[1753295225036,0.30769853,118390.0,118380.0,0.59584889]
[1753295225233,0.30769853,118390.0,118380.0,0.23220612]
[1753295225443,0.31620763,118390.0,118380.0,0.59584889]
[1753295225649,0.32465414,118390.0,118380.0,0.59584889]
[1753295226014,0.38657526,118390.0,118380.0,0.21234217]
[1753295226220,0.50735274,118390.0,118380.0,0.55213764]
[1753295226420,0.49890623,118390.0,118380.0,0.38319019]
[1753295226644,0.49890623,118390.0,118380.0,0.36789019]
[1753295226847,0.58338353,118390.0,118380.0,0.00214742]
[1753295227251,0.61448353,118390.0,118380.0,0.00214742]
[1753295227610,0.78193255,118390.0,118380.0,0.00214742]
[1753295227825,1.14557532,118390.0,118380.0,0.00114742]
[1753295228019,1.41325532,118390.0,118380.0,0.00114742]
[1753295228423,1.18229255,118390.0,118380.0,0.00114742]
[1753295228677,1.18229255,118390.0,118380.0,0.00014742]
[1753295229152,0.78229255,118390.0,118380.0,0.00014742]
[1753295229358,0.76484353,118390.0,118380.0,0.00014742]
[1753295229999,0.76584353,118390.0,118380.0,0.00014742]
[1753295231496,0.73204958,118390.0,118380.0,0.00014742]
[1753295232037,0.59936958,118390.0,118380.0,0.00014742]
[1753295232240,0.73200958,118390.0,118380.0,0.00014742]
[1753295233085,1.11310137,118390.0,118380.0,0.00014742]
[1753295233893,0.7494586,118390.0,118380.0,0.00014742]
[1753295234318,0.7012959,118390.0,118380.0,0.00014742]
[1753295234518,0.7496186,118390.0,118380.0,0.00014742]
[1753295235222,0.7495386,118390.0,118380.0,0.00014742]
[1753295237471,0.7410295,118390.0,118380.0,0.00014742]
[1753295237688,0.6083095,118390.0,118380.0,0.00014742]
[1753295237899,0.7411495,118390.0,118380.0,0.00014742]
[1753295238111,0.8256268,118390.0,118380.0,0.00014742]
[1753295239578,1.18926957,118390.0,118380.0,0.00014742]
[1753295241355,0.8256268,118390.0,118380.0,0.00014742]
[1753295242927,0.83412557,118390.0,118380.0,0.00014742]
[1753295246197,1.19776834,118390.0,118380.0,0.00014742]
[1753295248375,0.83412557,118390.0,118380.0,0.00014742]
[1753295250058,0.71822827,118390.0,118380.0,0.36589019]
[1753295250279,0.71822827,118390.0,118380.0,0.39779019]
[1753295250678,0.58570827,118390.0,118380.0,0.39779019]
[1753295250846,0.71814827,118390.0,118380.0,0.39779019]
[1753295251448,0.71814827,118390.0,118380.0,0.03414742]
[1753295251677,0.74518099,118390.0,118380.0,0.01814742]
[1753295252101,0.71814827,118390.0,118380.0,0.01814742]
[1753295252506,0.71814827,118390.0,118380.0,0.03364742]
[1753295252864,0.71814827,118390.0,118380.0,0.00014742]
[1753295253304,0.73354827,118390.0,118380.0,0.00014742]
[1753295253905,1.45249104,118390.0,118380.0,0.00014742]
[1753295254108,1.17332557,118390.0,118380.0,0.00014742]
[1753295254361,1.53696834,118390.0,118380.0,0.00014742]
[1753295257188,1.53596834,118390.0,118380.0,0.00014742]
[1753295257394,1.40352834,118390.0,118380.0,0.00014742]
[1753295257612,1.45452834,118390.0,118380.0,0.00014742]
[1753295257821,1.58684834,118390.0,118380.0,0.00014742]
[1753295258236,1.58680834,118390.0,118380.0,0.00014742]
[1753295260169,1.58672834,118390.0,118380.0,0.00014742]
[1753295262119,0.77570827,118390.0,118380.0,0.00014742]
[1753295262343,0.89037925,118390.0,118380.0,0.01604742]
[1753295262791,0.88732925,118390.0,118380.0,0.03376742]
[1753295263258,0.90477827,118390.0,118380.0,0.03376742]
[1753295263517,0.75267827,118390.0,118380.0,0.40052019]
[1753295263751,0.26290925,118390.0,118380.0,0.57791494]
[1753295263980,0.00849877,118390.0,118380.0,0.6032559]
[1753295264206,0.01849486,118400.0,118390.0,0.22667228]
[1753295264432,0.01849486,118400.0,118390.0,0.59554505]
[1753295264650,0.02694059,118400.0,118390.0,0.59554505]
[1753295265088,0.03538639,118400.0,118390.0,0.59554505]
[1753295265720,0.04383226,118400.0,118390.0,0.59554505]
[1753295266154,0.05240977,118400.0,118390.0,0.59554505]
[1753295267681,0.22132868,118400.0,118390.0,0.5880989]
[1753295267912,0.20283382,118400.0,118390.0,0.5880989]